[Event "Liberia Championship 2023"]
[Site "Monrovia"]
[Date "2024.01.23"]
[Round "8.9"]
[White "Bobby Ballah"]
[Black "Prince Jegbadai"]
[Result "1-0"]
[ECO "C10"]
[WhiteElo "1913"]
[BlackElo "1627"]
[Annotator "NA RC"]
[PlyCount "65"]
[EventDate "2024.01.16"]
[EventType "swiss"]
[EventCountry "LBR"]
[SourceTitle "playchess.com"]
[Source "ChessBase"]
[SourceQuality "1"]
[TimeControl "40/5400+30:1800+30"]

1. e4 {[%emt 0:14:27]} e6 {[%emt 0:00:00]} 2. d4 {[%emt 0:00:08]} d5 {[%emt 0:00:11]} 3. Nc3 {[%emt 0:00:01]} a6 {[%emt 0:00:14]} 4. Bd3 {[%emt 0:00:33]} h6 {[%emt 0:00:16]} 5. Nf3 {[%emt 0:00:22]} Bb4 {[%emt 0:00:19]} 6. O-O {[%emt 0:00:34]} Ne7 {[%emt 0:00:14]} 7. Ne5 {[%emt 0:04:49]} O-O {[%emt 0:00:30]} 8. Qh5 {[%emt 0:01:03]} Nd7 {[%emt 0:01:23]} 9. exd5 {[%emt 0:08:47]} Nf6 {[%emt 0:00:57]} 10. Qe2 {[%emt 0:05:15]} Bxc3 {[%emt 0:00:23]} 11. bxc3 {[%emt 0:00:25]} Qxd5 {[%emt 0:00:28]} 12. Ba3 {[%emt 0:01:24]} Re8 {[%emt 0:00:20]} 13. Rfe1 {[%emt 0:00:13]} b5 {[%emt 0:00:59]} 14. Ng4 {[%emt 0:03:02]} Qg5 {[%emt 0:01:34]} 15. Nxf6+ {[%emt 0:00:06]} Qxf6 {[%emt 0:00:25]} 16. Qe4 {[%emt 0:00:16]} g6 {[%emt 0:02:21]} 17. Bxe7 {[%emt 0:00:27]} Qxe7 {[%emt 0:00:30]} 18. Qxa8 {[%emt 0:00:04]} c6 {[%emt 0:00:59]} 19. Qb8 {[%emt 0:00:26]} Rd8 {[%emt 0:01:28]} 20. Qf4 {[%emt 0:00:15]} Kh7 {[%emt 0:00:52]} 21. Re5 {[%emt 0:00:22]} f5 {[%emt 0:01:03]} 22. Rae1 {[%emt 0:00:43]} Rf8 {[%emt 0:00:22]} 23. c4 {[%emt 0:04:30]} Kg7 {[%emt 0:00:20]} 24. cxb5 {[%emt 0:00:10]} axb5 {[%emt 0:00:32]} 25. Rc5 {[%emt 0:00:05]} Bd7 {[%emt 0:01:29]} 26. c4 {[%emt 0:00:20]} b4 {[%emt 0:00:19]} 27. Rb1 {[%emt 0:00:17]} Ra8 {[%emt 0:00:43]} 28. Rxb4 {[%emt 0:00:37]} Ra7 {[%emt 0:01:23]} 29. Qe5+ {[%emt 0:00:04]} Kf7 {[%emt 0:00:57]} 30. Qh8 {[%emt 0:00:44]} Qd6 {[%emt 0:02:16]} 31. Rb8 {[%emt 0:00:31]} Rxa2 {[%emt 0:01:27]} 32. Rg8 {[%emt 0:00:19]} e5 {[%emt 0:04:18]} 33. Qh7+ {[%emt 0:00:37]} 1-0

[Event "Liberia Championship 2023"]
[Site "Monrovia"]
[Date "2024.01.24"]
[Round "9.1"]
[White "Thomas, Saah"]
[Black "Joel O. Ebiekuta"]
[Result "1-0"]
[ECO "C34"]
[WhiteElo "1889"]
[BlackElo "1875"]
[Annotator "NA"]
[PlyCount "157"]
[EventDate "2024.01.16"]
[EventType "swiss"]
[EventCountry "LBR"]
[SourceTitle "playchess.com"]
[Source "ChessBase"]
[SourceQuality "1"]
[TimeControl "40/5400+30:1800+30"]

1. e4 {[%emt 0:00:03]} d6 {[%emt 0:33:20]} 2. f4 {[%emt 0:01:09]} e5 {[%emt 0:00:01]} 3. Nf3 {[%emt 0:01:25]} exf4 {[%emt 0:00:51]} 4. Bc4 {[%emt 0:00:04]} h6 {[%emt 0:00:19]} 5. Nc3 {[%emt 0:01:27]} c6 {[%emt 0:00:01]} 6. d4 {[%emt 0:00:11]} g5 {[%emt 0:00:06]} 7. O-O Bg7 8. b3 {[%emt 0:02:42]} Ne7 {[%emt 0:00:36]} 9. Bb2 {[%emt 0:00:10]} O-O {[%emt 0:00:02]} 10. Qd2 {[%emt 0:00:52]} Ng6 {[%emt 0:00:11]} 11. Bd3 {[%emt 0:00:22]} g4 {[%emt 0:01:43]} 12. Ne2 {[%emt 0:00:59]} gxf3 {[%emt 0:02:08]} 13. gxf3 {[%emt 0:00:03]} Qh4 {[%emt 0:00:52]} 14. Rf2 {[%emt 0:02:06]} Bh3 15. Re1 {[%emt 0:00:36]} Nd7 16. Nc1 Rae8 17. Kh1 Re6 {[%emt 0:02:46]} 18. Rg1 {[%emt 0:00:32]} Rfe8 19. Bc4 Rf6 20. a4 Ndf8 {[%emt 0:00:43]} 21. Nd3 {[%emt 0:01:11]} Qh5 {[%emt 0:00:53]} 22. d5 {[%emt 0:00:23]} Re5 {[%emt 0:02:47]} 23. Bxe5 {[%emt 0:03:59]} dxe5 {[%emt 0:00:50]} 24. dxc6 {[%emt 0:00:37]} Rxc6 {[%emt 0:00:19]} 25. Qa5 {[%emt 0:00:49]} a6 {[%emt 0:01:31]} 26. Qd8 {[%emt 0:00:37]} Be6 {[%emt 0:00:23]} 27. Bxe6 {[%emt 0:03:25]} fxe6 {[%emt 0:07:22]} 28. Rg4 {[%emt 0:02:34]} Kh7 {[%emt 0:01:09]} 29. h4 {[%emt 0:00:54]} Nh8 {[%emt 0:04:00]} 30. Rfg2 {[%emt 0:04:09]} Nhg6 {[%emt 0:01:09]} 31. c4 {[%emt 0:00:21]} b6 {[%emt 0:00:44]} 32. Kg1 {[%emt 0:01:02]} b5 {[%emt 0:00:31]} 33. axb5 {[%emt 0:00:18]} axb5 {[%emt 0:00:01]} 34. cxb5 {[%emt 0:01:39]} Rc3 {[%emt 0:00:10]} 35. Rb2 {[%emt 0:00:36]} Nxh4 {[%emt 0:01:10]} 36. Qxh4 {[%emt 0:00:36]} Qxh4 {[%emt 0:00:02]} 37. Rxh4 {[%emt 0:00:01]} Rxd3 {[%emt 0:00:01]} 38. Kf2 {[%emt 0:00:56]} Nd7 {[%emt 0:00:04]} 39. Rh1 {[%emt 0:01:19]} Bf8 {[%emt 0:00:09]} 40. b4 {[%emt 0:00:18]} Be7 {[%emt 0:01:35]} 41. Ra1 {[%emt 0:00:49]} Bd8 {[%emt 0:00:51]} 42. Ra6 {[%emt 0:01:44]} Bb6+ {[%emt 0:00:49]} 43. Kg2 {[%emt 0:00:37]} h5 {[%emt 0:02:45]} 44. Rc2 {[%emt 0:00:48]} Kg6 {[%emt 0:03:06]} 45. Rc6 {[%emt 0:02:16]} Rd2+ {[%emt 0:00:41]} 46. Kh3 {[%emt 0:00:52]} Bg1 {[%emt 0:01:10]} 47. Rxe6+ {[%emt 0:00:37]} Kf7 {[%emt 0:00:47]} 48. Kh4 {[%emt 0:00:48]} Nf8 {[%emt 0:04:53]} 49. Rf6+ {[%emt 0:01:00]} Kg7 {[%emt 0:00:36]} 50. Kxh5 {[%emt 0:01:06]} Rh2+ {[%emt 0:00:39]} 51. Kg4 {[%emt 0:00:45]} Bf2 {[%emt 0:00:33]} 52. Rxf8 {[%emt 0:02:32]} Kxf8 {[%emt 0:00:51]} 53. b6 {[%emt 0:00:50]} Bxb6 {[%emt 0:05:48]} 54. Rxb6 {[%emt 0:00:51]} Ke7 {[%emt 0:00:37]} 55. b5 {[%emt 0:00:54]} Rb2 {[%emt 0:00:46]} 56. Kf5 {[%emt 0:00:36]} Rb3 {[%emt 0:00:30]} 57. Kxe5 {[%emt 0:00:59]} Rxf3 {[%emt 0:00:31]} 58. Rb7+ {[%emt 0:00:31]} Kd8 {[%emt 0:00:32]} 59. b6 {[%emt 0:01:22]} Rf1 {[%emt 0:00:32]} 60. Rf7 {[%emt 0:00:51]} f3 {[%emt 0:02:22]} 61. b7 {[%emt 0:00:35]} Rb1 {[%emt 0:00:58]} 62. Rf8+ {[%emt 0:00:49]} Kc7 {[%emt 0:00:41]} 63. Rf7+ {[%emt 0:01:02]} Kb8 {[%emt 0:01:00]} 64. Rxf3 Kxb7 65. Rd3 {[%emt 0:01:25]} Kc7 {[%emt 0:01:05]} 66. Ke6 {[%emt 0:00:40]} Re1 {[%emt 0:02:47]} 67. e5 {[%emt 0:00:34]} Re2 {[%emt 0:00:56]} 68. Kf6 {[%emt 0:01:13]} Re1 {[%emt 0:01:55]} 69. e6 {[%emt 0:00:59]} Re2 {[%emt 0:00:38]} 70. e7 {[%emt 0:01:07]} Rf2+ {[%emt 0:00:39]} 71. Ke6 {[%emt 0:00:32]} Re2+ 72. Kf7 {[%emt 0:00:49]} Rf2+ {[%emt 0:01:05]} 73. Ke8 {[%emt 0:00:31]} Rf1 {[%emt 0:00:57]} 74. Rh3 {[%emt 0:02:12]} Rf2 {[%emt 0:01:49]} 75. Rc3+ {[%emt 0:00:48]} Kb7 {[%emt 0:03:49]} 76. Rc4 {[%emt 0:00:40]} Rf1 {[%emt 0:03:23]} 77. Kd7 {[%emt 0:00:37]} Rd1+ {[%emt 0:39:30]} 78. Ke6 Re1+ 79. Kf6 {[%emt 1:26:14]} 1-0

[Event "Liberia Championship 2023"]
[Site "Monrovia"]
[Date "2024.01.24"]
[Round "9.2"]
[White "Anthony Waylea, Jr."]
[Black "Barcon, Harmon"]
[Result "1/2-1/2"]
[ECO "A22"]
[WhiteElo "1939"]
[BlackElo "1902"]
[Annotator "NA"]
[PlyCount "76"]
[EventDate "2024.01.16"]
[EventType "swiss"]
[EventCountry "LBR"]
[SourceTitle "playchess.com"]
[Source "ChessBase"]
[SourceQuality "1"]
[TimeControl "40/5400+30:1800+30"]

1. c4 {[%emt 0:38:27]} e5 {[%emt 0:00:06]} 2. Nc3 {[%emt 0:00:06]} Nf6 {[%emt 0:00:06]} 3. d3 {[%emt 0:00:14]} Bb4 {[%emt 0:02:16]} 4. Bd2 {[%emt 0:00:39]} O-O {[%emt 0:00:11]} 5. g3 {[%emt 0:00:05]} c6 {[%emt 0:00:19]} 6. Nf3 {[%emt 0:00:22]} Re8 {[%emt 0:00:03]} 7. Bg2 {[%emt 0:01:17]} d5 {[%emt 0:00:19]} 8. cxd5 {[%emt 0:01:27]} cxd5 {[%emt 0:00:02]} 9. O-O {[%emt 0:00:11]} h6 {[%emt 0:00:21]} 10. Qb3 {[%emt 0:00:48]} Nc6 {[%emt 0:00:49]} 11. a3 {[%emt 0:00:07]} Ba5 {[%emt 0:01:12]} 12. Rfd1 {[%emt 0:00:42]} Rb8 {[%emt 0:00:50]} 13. Qc2 {[%emt 0:02:29]} Bg4 {[%emt 0:01:22]} 14. Nb5 {[%emt 0:06:05]} Bxd2 {[%emt 0:03:16]} 15. Qxd2 {[%emt 0:02:05]} a6 {[%emt 0:00:13]} 16. Nc3 {[%emt 0:00:07]} Qd7 {[%emt 0:01:27]} 17. Ne1 {[%emt 0:02:55]} Nd4 {[%emt 0:01:30]} 18. Rab1 {[%emt 0:00:20]} Be6 {[%emt 0:00:43]} 19. b4 {[%emt 0:00:49]} Rbc8 {[%emt 0:00:53]} 20. Rdc1 {[%emt 0:00:04]} b5 {[%emt 0:01:56]} 21. e3 {[%emt 0:00:48]} Nc6 {[%emt 0:01:48]} 22. d4 {[%emt 0:02:35]} exd4 {[%emt 0:02:12]} 23. exd4 {[%emt 0:00:06]} Bh3 {[%emt 0:00:31]} 24. Bh1 {[%emt 0:02:23]} Bf5 {[%emt 0:00:19]} 25. Ra1 {[%emt 0:00:48]} Be4 {[%emt 0:02:16]} 26. f3 {[%emt 0:03:21]} Bg6 {[%emt 0:00:04]} 27. Ng2 {[%emt 0:02:29]} Qa7 {[%emt 0:00:55]} 28. Ne2 {[%emt 0:00:19]} Ne7 {[%emt 0:02:46]} 29. Ngf4 {[%emt 0:01:21]} Bh7 {[%emt 0:00:11]} 30. Nd3 {[%emt 0:01:08]} Bxd3 {[%emt 0:00:47]} 31. Qxd3 {[%emt 0:00:06]} Rc4 {[%emt 0:00:55]} 32. Bg2 {[%emt 0:02:44]} Nc6 {[%emt 0:01:40]} 33. Rd1 {[%emt 0:03:46]} Qe7 {[%emt 0:03:48]} 34. Kf2 {[%emt 0:01:58]} Qa7 {[%emt 0:03:57]} 35. Bf1 {[%emt 0:01:48]} Ne5 {[%emt 0:02:46]} 36. Qf5 {[%emt 0:00:43]} Nc6 {[%emt 0:00:07]} 37. Qd3 Ne5 38. Qf5 {[%emt 0:02:33]} Nc6 {[%emt 0:01:00]} 1/2-1/2

[Event "Liberia Championship 2023"]
[Site "Monrovia"]
[Date "2024.01.24"]
[Round "9.3"]
[White "David Leroy Debblay"]
[Black "Foday W. Kondoh"]
[Result "1-0"]
[ECO "C54"]
[WhiteElo "1791"]
[BlackElo "1785"]
[Annotator "NA RC"]
[PlyCount "59"]
[EventDate "2024.01.16"]
[EventType "swiss"]
[EventCountry "LBR"]
[SourceTitle "playchess.com"]
[Source "ChessBase"]
[SourceQuality "1"]
[TimeControl "40/5400+30:1800+30"]

1. e4 {[%emt 0:01:41]} e5 {[%emt 0:00:17]} 2. Nf3 {[%emt 0:00:17]} Nc6 {[%emt 0:00:56]} 3. Bc4 {[%emt 0:00:08]} Bc5 {[%emt 0:01:14]} 4. c3 {[%emt 0:00:39]} Nf6 {[%emt 0:01:44]} 5. d3 {[%emt 0:00:10]} a6 {[%emt 0:05:29]} 6. O-O {[%emt 0:00:24]} d6 {[%emt 0:01:23]} 7. h3 {[%emt 0:00:19]} Qe7 {[%emt 0:01:33]} 8. d4 {[%emt 0:03:08]} exd4 {[%emt 0:01:23]} 9. cxd4 {[%emt 0:00:07]} Ba7 {[%emt 0:00:47]} 10. Nc3 {[%emt 0:00:18]} b5 {[%emt 0:10:08]} 11. Bb3 {[%emt 0:00:35]} Na5 {[%emt 0:01:35]} 12. Bc2 {[%emt 0:01:09]} h6 {[%emt 0:02:41]} 13. Re1 {[%emt 0:00:24]} O-O {[%emt 0:00:24]} 14. e5 {[%emt 0:01:39]} dxe5 {[%emt 0:01:04]} 15. dxe5 {[%emt 0:02:15]} Nh7 {[%emt 0:10:29]} 16. Qd3 {[%emt 0:05:56]} g6 {[%emt 0:00:14]} 17. Bxh6 {[%emt 0:03:02]} Rd8 {[%emt 0:00:41]} 18. Qe2 {[%emt 0:00:18]} Be6 {[%emt 0:03:16]} 19. Be4 {[%emt 0:03:13]} Rab8 {[%emt 0:05:09]} 20. Rad1 {[%emt 0:01:47]} Rxd1 {[%emt 0:03:49]} 21. Rxd1 {[%emt 0:00:21]} Bc4 {[%emt 0:19:54]} 22. Qd2 {[%emt 0:03:12]} b4 {[%emt 0:10:44]} 23. Nd5 {[%emt 0:01:02]} Qd7 {[%emt 0:02:11]} 24. Nxb4 {[%emt 0:02:52]} Qxd2 {[%emt 0:02:12]} 25. Bxd2 {[%emt 0:00:45]} Rd8 {[%emt 0:00:53]} 26. Rc1 {[%emt 0:02:03]} Be2 {[%emt 0:01:45]} 27. Bc3 {[%emt 0:02:31]} Nf8 {[%emt 0:02:00]} 28. Nd5 {[%emt 0:00:34]} Nc4 {[%emt 0:02:46]} 29. Nxc7 {[%emt 0:00:43]} Rb8 {[%emt 0:05:05]} 30. Ra1 {[%emt 0:02:39]} 1-0

[Event "Liberia Championship 2023"]
[Site "Monrovia"]
[Date "2024.01.24"]
[Round "9.4"]
[White "Obediah Saah"]
[Black "John Jallah"]
[Result "1-0"]
[ECO "D02"]
[WhiteElo "1756"]
[BlackElo "1761"]
[Annotator "NA RC"]
[PlyCount "97"]
[EventDate "2024.01.16"]
[EventType "swiss"]
[EventCountry "LBR"]
[SourceTitle "playchess.com"]
[Source "ChessBase"]
[SourceQuality "1"]
[TimeControl "40/5400+30:1800+30"]

1. d4 {[%emt 0:00:30]} d5 {[%emt 0:13:09]} 2. Nf3 {[%emt 1:31:00]} Nf6 {[%emt 1:18:21]} 3. c3 {[%emt 0:00:00]} b6 {[%emt 0:00:00]} 4. Bf4 {[%emt 0:00:00]} e6 {[%emt 0:00:00]} 5. e3 {[%emt 0:00:00]} Bb7 {[%emt 0:00:00]} 6. Qa4+ {[%emt 0:00:00]} Nbd7 {[%emt 0:00:00]} 7. Ne5 {[%emt 0:00:00]} Bd6 {[%emt 0:00:00]} 8. Nxd7 {[%emt 0:00:00]} Qxd7 {[%emt 0:00:00]} 9. Qxd7+ {[%emt 0:00:00]} Kxd7 {[%emt 0:00:00]} 10. Bxd6 {[%emt 0:00:00]} Kxd6 {[%emt 0:00:00]} 11. Nd2 {[%emt 0:00:00]} c5 {[%emt 0:00:00]} 12. Nf3 {[%emt 0:00:00]} c4 {[%emt 0:00:00]} 13. Ne5 {[%emt 0:00:00]} Rhf8 {[%emt 0:00:00]} 14. g4 {[%emt 0:00:00]} Nd7 {[%emt 0:00:00]} 15. Nxd7 {[%emt 0:00:00]} Kxd7 {[%emt 0:00:00]} 16. f4 {[%emt 0:00:00]} f6 {[%emt 0:00:00]} 17. h4 {[%emt 0:00:00]} Kd6 {[%emt 0:00:00]} 18. Bg2 {[%emt 0:00:00]} e5 {[%emt 0:00:00]} 19. dxe5+ {[%emt 0:00:00]} fxe5 {[%emt 0:00:00]} 20. f5 {[%emt 0:00:00]} Rad8 {[%emt 0:00:00]} 21. Rf1 {[%emt 0:00:00]} Bc8 {[%emt 0:00:00]} 22. Rd1 {[%emt 0:00:00]} Kc5 {[%emt 0:00:00]} 23. Rf2 {[%emt 0:00:00]} Rd6 {[%emt 0:00:00]} 24. e4 {[%emt 0:00:00]} d4 {[%emt 0:00:00]} 25. cxd4+ {[%emt 0:00:00]} exd4 {[%emt 0:00:00]} 26. e5 {[%emt 0:00:00]} Re8 {[%emt 0:00:00]} 27. e6 {[%emt 0:00:00]} Bxe6 {[%emt 0:00:00]} 28. fxe6 {[%emt 0:00:00]} Rdxe6+ {[%emt 0:00:00]} 29. Kd2 {[%emt 0:00:00]} b5 {[%emt 0:00:00]} 30. a3 {[%emt 0:14:00]} a5 {[%emt 0:00:00]} 31. Rf5+ {[%emt 0:00:00]} Re5 {[%emt 0:00:00]} 32. Rxe5+ {[%emt 0:00:00]} Rxe5 {[%emt 0:00:00]} 33. Rf1 {[%emt 0:00:00]} g6 {[%emt 0:00:00]} 34. Rf7 {[%emt 0:00:00]} d3 {[%emt 0:00:00]} 35. Bf3 {[%emt 0:00:00]} Re6 {[%emt 0:16:30]} 36. Rc7+ {[%emt 0:00:00]} Kd4 {[%emt 0:00:00]} 37. Rd7+ {[%emt 0:00:00]} Ke5 {[%emt 0:00:00]} 38. Rxh7 {[%emt 0:00:00]} Rf6 {[%emt 0:00:00]} 39. Ke3 {[%emt 0:00:00]} Kd6 {[%emt 0:00:00]} 40. Ra7 {[%emt 0:00:00]} Kc5 {[%emt 0:00:00]} 41. Rc7+ {[%emt 0:00:00]} Kb6 {[%emt 0:00:00]} 42. Rc6+ {[%emt 0:00:00]} Rxc6 {[%emt 0:00:00]} 43. Bxc6 {[%emt 0:00:00]} Kxc6 {[%emt 0:00:00]} 44. h5 {[%emt 0:00:00]} gxh5 {[%emt 0:00:00]} 45. gxh5 {[%emt 0:37:30]} Kc5 {[%emt 0:00:00]} 46. h6 {[%emt 0:00:00]} b4 {[%emt 0:00:00]} 47. h7 {[%emt 0:00:00]} c3 {[%emt 0:00:00]} 48. axb4+ {[%emt 0:00:00]} axb4 {[%emt 0:00:00]} 49. bxc3 {[%emt 0:00:00]} 1-0

[Event "Liberia Championship 2023"]
[Site "Monrovia"]
[Date "2024.01.24"]
[Round "9.5"]
[White "Kennedy Zinnah Kengo"]
[Black "Arnold Smith"]
[Result "1/2-1/2"]
[ECO "D35"]
[WhiteElo "1789"]
[BlackElo "1844"]
[Annotator "NA"]
[PlyCount "117"]
[EventDate "2024.01.16"]
[EventType "swiss"]
[EventCountry "LBR"]
[SourceTitle "playchess.com"]
[Source "ChessBase"]
[SourceQuality "1"]
[TimeControl "40/5400+30:1800+30"]

1. d4 {[%emt 0:09:13]} Nf6 {[%emt 0:22:11]} 2. c4 {[%emt 0:03:10]} e6 {[%emt 0:00:08]} 3. Nc3 {[%emt 0:00:16]} d5 {[%emt 0:00:07]} 4. Bg5 {[%emt 0:00:20]} Be7 {[%emt 0:00:23]} 5. Nf3 {[%emt 0:00:26]} Nbd7 {[%emt 0:00:30]} 6. cxd5 {[%emt 0:00:35]} exd5 {[%emt 0:00:10]} 7. e3 {[%emt 0:00:16]} O-O {[%emt 0:00:09]} 8. Bd3 {[%emt 0:00:13]} h6 {[%emt 0:00:41]} 9. Bh4 {[%emt 0:00:35]} c6 {[%emt 0:02:24]} 10. O-O {[%emt 0:00:21]} Re8 {[%emt 0:00:34]} 11. Rc1 {[%emt 0:00:15]} Nf8 {[%emt 0:01:44] D35: Queen's Gambit Declined: Exchange Variation.} 12. Ne5 {[%emt 0:00:15]} N6d7 {[%emt 0:01:17]} 13. Bg3 {[%emt 0:00:57]} Nxe5 {[%emt 0:03:16]} 14. Bxe5 {[%emt 0:01:20]} Bd6 {[%emt 0:01:55]} 15. Bxd6 {[%emt 0:02:34]} Qxd6 {[%emt 0:00:03]} 16. a3 {[%emt 0:00:17]} Be6 {[%emt 0:00:46]} 17. Na4 {[%emt 0:00:40]} Rad8 {[%emt 0:00:13]} 18. Bb1 {[%emt 0:00:24]} Bc8 {[%emt 0:00:16]} 19. b4 {[%emt 0:00:22]} Qf6 {[%emt 0:02:46]} 20. Qh5 {[%emt 0:01:21]} Ne6 {[%emt 0:02:16]} 21. Nc5 {[%emt 0:00:24]} Nxc5 {[%emt 0:01:32]} 22. Rxc5 {[%emt 0:00:14]} Bd7 {[%emt 0:00:12]} 23. h3 {[%emt 0:01:21]} a6 {[%emt 0:00:51]} 24. g4 {[%emt 0:02:59]} Qf3 {[%emt 0:03:28]} 25. Qh4 {[%emt 0:01:28]} f5 {[%emt 0:01:21]} 26. gxf5 {[%emt 0:06:21]} Bxf5 {[%emt 0:00:38]} 27. Bxf5 {[%emt 0:00:05]} Qxf5 {[%emt 0:00:05]} 28. Rc3 {[%emt 0:00:07]} Rd6 {[%emt 0:00:50]} 29. Kh2 {[%emt 0:01:24]} Rg6 {[%emt 0:00:45]} 30. f4 {[%emt 0:01:57]} Ree6 {[%emt 0:02:26]} 31. a4 {[%emt 0:00:53]} Re8 {[%emt 0:09:21]} 32. Qf2 {[%emt 0:00:39]} Qf8 {[%emt 0:01:31]} 33. Rb1 {[%emt 0:01:17]} Rge6 {[%emt 0:04:11]} 34. b5 {[%emt 0:03:28]} axb5 {[%emt 0:00:30]} 35. axb5 {[%emt 0:00:07]} Qe7 {[%emt 0:00:29]} 36. bxc6 {[%emt 0:01:18]} bxc6 {[%emt 0:00:06]} 37. Rbb3 {[%emt 0:00:37]} Ra8 {[%emt 0:04:00]} 38. Qg2 {[%emt 0:00:19]} Qf7 {[%emt 0:02:30]} 39. Rb6 {[%emt 0:03:21]} Rae8 {[%emt 0:00:37]} 40. Rbb3 {[%emt 0:58:21]} Rg6 {[%emt 0:00:00]} 41. Qc2 {[%emt 0:00:00]} Rge6 {[%emt 0:02:47]} 42. Rxc6 {[%emt 0:00:00]} Rxe3 {[%emt 0:00:50]} 43. Rxe3 {[%emt 0:00:00]} Rxe3 {[%emt 0:00:50]} 44. Rc8+ {[%emt 0:00:00]} Re8 {[%emt 0:00:44]} 45. Rxe8+ {[%emt 0:00:00]} Qxe8 {[%emt 0:00:32]} 46. Qd3 {[%emt 0:00:00]} Qe1 {[%emt 0:02:15]} 47. Kg2 {[%emt 0:00:00]} Qe6 {[%emt 0:01:25]} 48. Kf2 {[%emt 0:00:00]} Kf7 {[%emt 0:01:13]} 49. Qf3 {[%emt 0:00:00]} Kf6 {[%emt 0:01:05]} 50. Kg3 {[%emt 0:00:00]} Qf5 {[%emt 0:01:01]} 51. Qc3 {[%emt 0:00:00]} Qe4 {[%emt 0:00:51]} 52. Qc6+ {[%emt 0:00:00]} Kf5 {[%emt 0:02:34]} 53. Qd7+ {[%emt 0:00:00]} Qe6 {[%emt 0:03:22]} 54. Qxg7 {[%emt 0:00:00]} Qe3+ {[%emt 0:02:52]} 55. Kg2 {[%emt 0:00:00]} Qe2+ {[%emt 0:02:56]} 56. Kg1 $11 {[%emt 0:00:00]} Qe3+ {[%emt 0:01:03]} 57. Kg2 {[%emt 0:00:00]} Qe2+ {[%emt 0:01:16]} 58. Kg1 {[%emt 0:00:00]} Qe3+ {[%emt 0:01:51]} 59. Kg2 {[%emt 0:00:00]} 1/2-1/2

[Event "Liberia Championship 2023"]
[Site "Monrovia"]
[Date "2024.01.24"]
[Round "9.7"]
[White "Bobby Ballah"]
[Black "Harold Evans"]
[Result "1-0"]
[ECO "B01"]
[WhiteElo "1913"]
[BlackElo "1735"]
[Annotator "NA RC"]
[PlyCount "75"]
[EventDate "2024.01.16"]
[EventType "swiss"]
[EventCountry "LBR"]
[SourceTitle "playchess.com"]
[Source "ChessBase"]
[SourceQuality "1"]
[TimeControl "40/5400+30:1800+30"]

1. e4 {[%emt 0:02:31]} d5 {[%emt 0:00:01]} 2. exd5 {[%emt 1:28:59]} Qxd5 {[%emt 0:00:50]} 3. Nf3 {[%emt 0:00:00]} Bg4 {[%emt 0:00:13]} 4. Be2 {[%emt 0:00:00]} Nc6 {[%emt 0:00:07]} 5. O-O {[%emt 0:00:00]} O-O-O {[%emt 0:00:01]} 6. Nc3 {[%emt 0:00:00]} Qh5 {[%emt 0:00:04]} 7. d3 {[%emt 0:00:00]} f5 {[%emt 0:00:16]} 8. Re1 {[%emt 0:00:00]} Nf6 {[%emt 0:00:29]} 9. h3 {[%emt 0:00:00]} Bxf3 {[%emt 0:00:41]} 10. Bxf3 {[%emt 0:00:00]} Qe8 {[%emt 0:00:17]} 11. Be3 {[%emt 0:00:00]} Kb8 {[%emt 0:00:04]} 12. Nb5 {[%emt 0:00:00]} a6 {[%emt 0:00:11]} 13. a4 {[%emt 0:00:00]} e5 {[%emt 0:00:19]} 14. Qb1 {[%emt 0:00:00]} h6 {[%emt 0:04:49]} 15. c3 {[%emt 0:00:00]} g5 {[%emt 0:00:14]} 16. b4 {[%emt 0:00:00]} g4 {[%emt 0:00:40]} 17. hxg4 {[%emt 0:00:00]} Nxg4 {[%emt 0:01:02]} 18. Bxg4 {[%emt 0:08:00]} fxg4 {[%emt 1:29:12]} 19. Na3 {[%emt 0:00:00]} Kc8 {[%emt 0:00:00]} 20. Nc4 {[%emt 0:00:00]} h5 {[%emt 0:00:00]} 21. b5 {[%emt 0:00:00]} Nb8 {[%emt 0:00:00]} 22. Ba7 {[%emt 0:00:00]} g3 {[%emt 0:00:00]} 23. f3 {[%emt 0:00:00]} Qg6 {[%emt 0:00:00]} 24. Nxe5 {[%emt 0:00:00]} Qf6 {[%emt 0:00:00]} 25. Bxb8 {[%emt 0:00:00]} Qh4 {[%emt 0:00:00]} 26. Ba7 {[%emt 0:00:00]} Qh2+ {[%emt 0:00:00]} 27. Kf1 {[%emt 0:00:00]} b6 {[%emt 0:00:00]} 28. d4 {[%emt 0:00:00]} Qh1+ {[%emt 0:00:00]} 29. Ke2 {[%emt 0:00:00]} Qxg2+ {[%emt 0:00:00]} 30. Kd1 {[%emt 0:00:00]} Bh6 {[%emt 0:00:00]} 31. Qf5+ {[%emt 0:00:00]} Kb7 {[%emt 0:00:00]} 32. Qe4+ {[%emt 0:00:00]} Kxa7 {[%emt 0:00:00]} 33. Nc6+ {[%emt 0:00:00]} Kb7 {[%emt 0:00:00]} 34. Nxd8+ {[%emt 0:00:00]} Kc8 {[%emt 0:00:00]} 35. Qe6+ {[%emt 0:00:00]} Kb8 {[%emt 0:00:00]} 36. Nc6+ {[%emt 0:00:00]} Kb7 {[%emt 0:00:00]} 37. bxa6+ {[%emt 0:00:00]} Ka8 {[%emt 0:00:00]} 38. Qe8+ {[%emt 0:00:00]} 1-0